bitfinex-derivatives/quotes_BNBF0:USTF0_20250510
["timestamp","ask_amount","ask_price","bid_price","bid_amount"]
[1746864388662,0.24401748,664.26,662.61,0.30183667]
[1746864388962,0.24401748,664.25,662.61,0.30183667]
[1746864389258,0.24401748,664.27,662.61,0.30183667]
[1746864391161,1.94982913,664.47,662.61,0.30183667]
[1746864391162,0.26233364,664.26,662.61,0.30183667]
[1746864391466,0.24401748,664.25,662.61,0.30183667]
[1746864393164,0.24401748,664.25,662.62,0.347]
[1746864393370,0.24401748,664.25,662.64,0.30182301]
[1746864394371,0.24401748,664.56,662.64,0.30182301]
[1746864394669,0.26229508,664.24,662.64,0.30182301]
[1746864394866,0.24401748,664.55,662.64,0.30182301]
[1746864395067,0.24401748,664.23,662.64,0.30182301]
[1746864395362,0.24401748,664.56,662.64,0.30182301]
[1746864395569,1.94982913,664.53,662.64,0.30182301]
[1746864396073,0.24401748,664.52,662.64,0.30182301]
[1746864396270,0.50631652,664.52,662.64,0.30182301]
[1746864396470,0.24401748,664.51,662.64,0.30182301]
[1746864396771,0.24401748,664.5,662.64,0.30182301]
[1746864397072,0.24401748,664.49,662.64,0.30182301]
[1746864397568,0.24401748,664.48,662.64,0.30182301]
[1746864397973,0.24401748,664.47,662.64,0.30182301]
[1746864398373,0.24401748,664.46,662.64,0.30182301]
[1746864398674,0.24401748,664.45,662.64,0.30182301]
[1746864399070,0.24401748,664.44,662.64,0.30182301]
[1746864399373,0.24401748,664.43,662.64,0.30182301]
[1746864399676,0.26229904,664.52,662.64,0.30182301]
[1746864399869,1.94982913,664.53,662.64,0.30182301]
[1746864400067,0.24413187,664.51,662.64,0.30182301]
[1746864400368,0.24413187,664.5,662.64,0.30182301]
[1746864400570,0.24413187,664.49,662.64,0.30182301]
[1746864401176,2.193961,664.49,662.64,0.30182301]
[1746864401374,0.24413187,664.48,662.64,0.30182301]
[1746864401771,0.24413187,664.47,662.64,0.30182301]
[1746864402370,0.24413187,664.46,662.64,0.30182301]
[1746864402672,0.24413187,664.45,662.64,0.30182301]
[1746864403077,0.26229904,664.52,662.64,0.30182301]
[1746864403078,0.24413187,664.44,662.64,0.30182301]
[1746864403376,0.24413187,664.43,662.64,0.30182301]
[1746864403776,0.24413187,664.42,662.64,0.30182301]
[1746864404176,0.24413187,664.41,662.64,0.30182301]
[1746864404472,0.24413187,664.4,662.64,0.30182301]
[1746864404873,0.24413187,664.51,662.64,0.30182301]
[1746864405173,0.24413187,664.5,662.64,0.30182301]
[1746864405577,0.24413187,664.51,662.64,0.30182301]
[1746864406177,0.26230793,664.5,662.64,0.30182301]
[1746864406478,0.24413187,664.49,662.64,0.30182301]
[1746864407879,0.26230793,664.5,662.64,0.30182301]
[1746864408378,0.24404945,664.49,662.64,0.30182301]
[1746864409382,0.24404945,664.92,662.64,0.30182301]
[1746864409684,0.26224962,664.48,662.64,0.30182301]
[1746864409880,0.24404945,664.92,662.64,0.30182301]
[1746864410082,0.24404945,664.91,662.64,0.30182301]
[1746864410282,0.24404945,664.9,662.64,0.30182301]
[1746864410783,0.24404945,664.89,662.64,0.30182301]
[1746864411082,0.50627832,664.89,662.64,0.30182301]
[1746864411282,0.24404945,664.88,662.64,0.30182301]
[1746864411680,0.24404945,664.87,662.64,0.30182301]
[1746864411878,1.94982913,665.16,662.64,0.30182301]
[1746864411879,0.24404945,664.86,662.64,0.30182301]
[1746864412382,0.24404945,664.85,662.64,0.30182301]
[1746864412682,0.24404945,664.84,662.64,0.30182301]
[1746864413077,0.24404945,664.83,662.64,0.30182301]
[1746864413482,0.24404945,664.82,662.64,0.30182301]
[1746864413781,0.24404945,664.85,662.64,0.30182301]
[1746864414081,0.24404945,664.84,662.64,0.30182301]
[1746864414477,0.24404945,664.83,662.64,0.30182301]
[1746864414980,0.24404945,664.82,662.64,0.30182301]
[1746864415177,0.24404945,664.81,662.64,0.30182301]
[1746864415581,0.24404945,664.8,662.64,0.30182301]
[1746864415982,0.24404945,664.79,662.64,0.30182301]
[1746864416382,0.24404945,664.78,662.64,0.30182301]
[1746864416883,0.24404945,664.77,662.64,0.30182301]
[1746864417187,0.24404945,664.76,662.64,0.30182301]
[1746864417486,0.24404945,664.75,662.64,0.30182301]
[1746864417886,0.24404945,664.74,662.64,0.30182301]
[1746864418182,0.24404945,664.73,662.64,0.30182301]
[1746864418387,0.50633761,664.73,662.64,0.30182301]
[1746864418587,0.24404945,664.72,662.64,0.30182301]
[1746864418986,0.24404945,664.71,662.64,0.30182301]
[1746864419181,1.94982913,664.37,662.64,0.30182301]
[1746864419988,0.24404945,664.36,662.64,0.30182301]
[1746864420790,0.24404945,664.35,662.64,0.30182301]
[1746864421090,0.24404945,664.34,662.64,0.30182301]
[1746864421490,0.24404945,664.33,662.64,0.30182301]
[1746864421888,0.24404945,664.32,662.64,0.30182301]
[1746864422290,0.24404945,664.31,662.64,0.30182301]
[1746864422491,0.24404945,664.3,662.64,0.30182301]
[1746864422987,0.24404945,664.29,662.64,0.30182301]
[1746864423386,0.24404945,664.57,662.64,0.30182301]
[1746864423592,1.94982913,664.54,662.64,0.30182301]
[1746864424191,1.94982913,664.54,662.65,0.89274735]
[1746864424490,0.24404945,664.53,662.66,0.89274735]
[1746864424690,0.50630006,664.53,662.67,0.89274735]
[1746864424886,0.50630006,664.53,662.68,0.89274735]
[1746864425092,0.24404945,664.52,662.69,0.89274735]
[1746864425390,0.24404945,664.52,662.7,0.89274735]
[1746864425591,0.24404945,664.52,662.71,0.89274735]
[1746864425790,0.24404945,664.52,662.72,0.89274735]
[1746864426090,0.24404945,664.52,662.73,0.89274735]
[1746864426291,0.24404945,664.52,662.74,0.89274735]
[1746864426488,0.24404945,664.52,662.75,0.89274735]
[1746864426689,0.24404945,664.51,662.76,0.89274735]
[1746864426890,0.24404945,664.51,662.77,0.89274735]
[1746864427086,0.24404945,664.5,662.78,0.89274735]
[1746864427390,0.24404945,664.49,662.67,0.338]
[1746864427589,0.24404945,664.49,662.68,0.89254922]
[1746864427791,0.24404945,664.48,662.69,0.89254922]
[1746864427990,0.24404945,664.48,662.7,0.89254922]
[1746864428190,0.24404945,664.47,662.71,0.89254922]
[1746864428492,0.24404945,664.46,662.72,0.89254922]
[1746864428687,0.24404945,664.45,662.73,0.89254922]
[1746864428890,0.24404945,664.45,662.74,0.89254922]
[1746864429193,0.24404945,664.44,662.75,0.89254922]
[1746864429394,0.24404945,664.44,662.76,0.89254922]
[1746864429693,0.24404945,664.49,662.77,0.89254922]
[1746864429888,0.24404945,664.49,662.78,0.89254922]
[1746864430089,0.24404945,664.49,662.79,0.89254922]
[1746864430289,0.24404945,664.49,662.8,0.89254922]
[1746864430493,0.24404945,664.68,662.81,0.89135718]
[1746864430690,0.26218738,664.48,662.82,0.89135718]
[1746864430993,0.26218738,664.48,662.83,0.89135718]
[1746864431194,0.26218738,664.48,662.67,0.338]
[1746864431195,0.24404945,664.47,662.84,0.89135718]
[1746864431390,0.24404945,664.47,662.85,0.89135718]
[1746864431596,0.24404945,664.47,662.86,0.89135718]
[1746864431795,0.24404945,664.47,662.87,0.89135718]
[1746864431998,0.24404945,664.47,662.88,0.89135718]
[1746864432198,0.24404945,664.47,662.67,0.338]
[1746864432399,0.24404945,664.47,662.68,0.89068096]
[1746864432594,0.24404945,664.47,662.69,0.89068096]
[1746864432799,0.24404945,664.47,662.7,0.89068096]
[1746864432995,0.24404945,664.47,662.71,0.89068096]
[1746864433198,0.24404945,664.47,662.72,0.89068096]
[1746864433393,0.24404945,664.47,662.73,0.89068096]
[1746864433600,0.24404945,664.47,662.74,0.89068096]
[1746864433898,0.24404945,664.47,662.75,0.89068096]
[1746864434098,0.24404945,664.47,662.76,0.88932167]
[1746864434299,0.24404945,664.47,662.77,0.88932167]
[1746864434599,0.24404945,664.47,662.78,0.88932167]
[1746864434798,0.24404945,664.47,662.79,0.88932167]
[1746864434999,0.24404945,664.47,662.8,0.88908759]
[1746864435201,0.24404945,664.47,662.81,0.88908759]
[1746864435399,0.24404945,664.47,662.82,0.88908759]
[1746864435600,0.24404945,664.47,662.83,0.88908759]
[1746864435792,0.24404945,664.47,662.84,0.88908759]
[1746864435996,0.24404945,665.32,662.85,0.88908759]
[1746864436195,0.26213702,664.46,662.79,0.363]
[1746864436995,0.24404945,664.45,662.79,0.363]
[1746864439201,0.24404945,665.13,662.79,0.363]
[1746864439398,0.24404945,665.12,662.79,0.363]
[1746864439598,0.26222986,664.44,662.79,0.363]
[1746864439997,0.24404945,664.43,662.79,0.363]
[1746864442102,0.24404945,665.33,662.79,0.363]
[1746864442301,1.94982913,665.27,662.79,0.363]
[1746864442599,0.2622101,664.42,662.79,0.363]
[1746864442907,0.24404945,664.41,662.79,0.363]
[1746864445404,0.2622101,664.42,662.79,0.363]
[1746864445603,0.24388756,664.41,662.79,0.363]
[1746864447900,0.24388756,664.4,662.79,0.363]
[1746864448202,0.24388756,664.39,662.79,0.363]
[1746864448405,0.24388756,664.38,662.79,0.363]
[1746864448701,0.24388756,664.37,662.79,0.363]
[1746864449006,0.2622101,664.42,662.79,0.363]
[1746864449207,0.24388343,664.41,662.79,0.363]
[1746864449510,0.24388343,664.4,662.79,0.363]
[1746864449806,0.24388343,664.39,662.79,0.363]
[1746864450009,0.24388343,664.38,662.79,0.363]
[1746864450307,0.24388343,664.37,662.79,0.363]
[1746864450503,0.24388343,664.36,662.79,0.363]
[1746864450709,0.2622101,664.42,662.79,0.363]
[1746864450710,0.24388343,664.41,662.79,0.363]
[1746864453812,0.2622101,664.42,662.79,0.363]
[1746864454010,1.94982913,664.99,662.79,0.363]
[1746864454211,0.2438422,664.41,662.79,0.363]
[1746864454611,0.2438422,664.98,662.79,0.363]
[1746864455007,0.2438422,664.97,662.79,0.363]
[1746864455411,0.2438422,664.96,662.79,0.363]
[1746864455612,0.50608391,664.96,662.79,0.363]
[1746864455811,0.2438422,664.95,662.79,0.363]
[1746864456012,0.2438422,664.94,662.79,0.363]
[1746864456508,0.2438422,664.93,662.79,0.363]
[1746864456906,0.2438422,664.92,662.79,0.363]
[1746864457315,0.2438422,664.91,662.79,0.363]
[1746864457514,0.50605823,664.91,662.79,0.363]
[1746864457813,0.2438422,664.9,662.79,0.363]
[1746864458216,0.2438422,664.89,662.79,0.363]
[1746864458516,0.2438422,664.88,662.79,0.363]
[1746864459118,0.26221603,664.91,662.79,0.363]
[1746864459616,0.24385087,664.9,662.79,0.363]
[1746864459918,0.24385087,664.89,662.79,0.363]
[1746864460217,0.24385087,664.88,662.79,0.363]
[1746864460518,0.50607678,664.88,662.79,0.363]
[1746864460712,0.24385087,664.87,662.79,0.363]
[1746864461012,0.24385087,664.86,662.79,0.363]
[1746864461521,0.24385087,664.85,662.79,0.363]
[1746864461819,0.24385087,664.84,662.79,0.363]
[1746864462413,0.24385087,664.83,662.79,0.363]
[1746864462718,0.24385087,664.82,662.79,0.363]
[1746864463013,0.24385087,664.81,662.79,0.363]
[1746864463320,0.24385087,664.8,662.79,0.363]
[1746864463617,0.24385087,664.79,662.79,0.363]
[1746864463918,1.94982913,664.65,662.79,0.363]
[1746864464217,0.24385087,664.64,662.79,0.363]
[1746864464619,0.24385087,664.63,662.79,0.363]
[1746864465018,0.24385087,664.63,662.67,0.338]
[1746864465218,0.24385087,664.62,662.67,0.338]
[1746864465719,0.24385087,664.62,662.68,0.89263764]
[1746864465921,1.94982913,664.61,662.69,0.89263764]
[1746864466121,1.94982913,664.61,662.7,0.89263764]
[1746864466320,2.19368,664.61,662.71,0.89263764]
[1746864466521,0.24385087,664.6,662.72,0.89263764]
[1746864466715,0.24385087,664.6,662.73,0.89263764]
[1746864466916,0.24385087,664.59,662.74,0.89263764]
[1746864467115,0.24385087,664.59,662.75,0.89263764]
[1746864467320,0.24385087,664.58,662.76,0.89263764]
[1746864467518,0.24385087,664.58,662.77,0.89263764]
[1746864467720,0.24385087,664.57,662.78,0.89263764]
[1746864467923,0.24385087,664.57,662.79,0.89263764]
[1746864468126,0.24385087,664.56,662.8,0.89263764]
[1746864468422,0.24385087,664.6,662.81,0.89263764]
[1746864468622,0.24385087,664.6,662.82,0.89263764]
[1746864468826,0.24385087,664.6,662.83,0.89228468]
[1746864469023,0.24385087,664.6,662.84,0.89228468]
[1746864469223,0.24385087,664.6,662.85,0.89228468]
[1746864469426,0.24385087,664.6,662.77,0.518]
[1746864472233,0.24385087,665.29,662.77,0.518]
[1746864472434,0.26219133,664.59,662.77,0.518]
[1746864472936,0.24385087,664.58,662.77,0.518]
[1746864474637,0.24385087,664.58,662.78,0.334]
[1746864475033,0.24385087,664.57,662.78,0.334]
[1746864475338,0.24385087,664.56,662.78,0.334]
[1746864475637,0.50606295,664.56,662.78,0.334]
[1746864475937,0.24385087,664.55,662.78,0.334]
[1746864476639,0.24385087,664.54,662.78,0.334]
[1746864476939,0.26221208,664.56,662.78,0.334]
[1746864476940,0.24385087,664.53,662.78,0.334]
[1746864477238,0.24385087,664.52,662.78,0.334]
[1746864477639,0.24385087,664.55,662.78,0.334]
[1746864478239,0.24385087,664.54,662.78,0.334]
[1746864478539,0.24385087,664.53,662.78,0.334]
[1746864478940,0.26230398,664.53,662.78,0.334]
[1746864479439,0.24385087,664.52,662.78,0.334]
[1746864480435,0.24385087,664.51,662.78,0.334]
[1746864480739,0.24385087,664.5,662.78,0.334]
[1746864480940,0.24385087,664.49,662.78,0.334]
[1746864481341,0.50612717,664.48,662.78,0.334]
[1746864481640,0.24385087,664.47,662.78,0.334]
[1746864482340,0.24385087,664.46,662.78,0.334]
[1746864482841,0.24385087,664.45,662.78,0.334]
[1746864483337,0.24385087,664.44,662.78,0.334]
[1746864483741,0.24385087,664.43,662.78,0.334]
[1746864484142,1.94982913,664.35,662.78,0.334]
[1746864484541,0.24385087,664.34,662.78,0.334]
[1746864486343,0.24385087,664.47,662.78,0.334]
[1746864489444,0.24385087,664.47,662.79,0.412]
[1746864490146,0.24385087,664.46,662.79,0.412]
[1746864490545,0.26224468,664.45,662.79,0.412]
[1746864491045,0.24385087,664.44,662.79,0.412]
[1746864493449,0.24385087,664.44,662.81,0.30174559]
[1746864496149,0.24385087,665.14,662.81,0.30174559]
[1746864496450,0.26222294,664.43,662.81,0.30174559]
[1746864496950,0.24385087,664.42,662.81,0.30174559]
[1746864499153,0.26221504,664.41,662.81,0.30174559]
[1746864499350,0.50606591,664.41,662.81,0.30174559]
[1746864499755,0.24385087,664.4,662.81,0.30174559]
[1746864500356,0.26221504,664.41,662.81,0.30174559]
[1746864501058,0.24426446,664.4,662.81,0.30174559]
[1746864502153,0.30073831,665.03,662.81,0.30174559]
[1746864502154,0.24426446,664.74,662.81,0.62674559]
[1746864502559,1.94982913,664.76,662.81,0.62674559]
[1746864502858,0.26225555,664.73,662.81,0.62674559]
[1746864503958,0.24427631,664.72,662.81,0.62674559]
[1746864504256,0.24427631,664.71,662.81,0.62674559]
[1746864504757,0.24427631,664.7,662.81,0.62674559]
[1746864505258,0.30073831,665.03,662.81,0.62674559]
[1746864505259,0.24427631,664.69,662.81,0.62674559]
[1746864505558,0.24427631,664.68,662.81,0.62674559]
[1746864505858,0.26221405,664.69,662.81,0.62674559]
[1746864506061,0.24422512,664.67,662.81,0.62674559]
[1746864506460,0.24422512,664.66,662.81,0.62674559]
[1746864506959,0.24422512,664.65,662.81,0.62674559]
[1746864507160,2.21204318,664.69,662.81,0.62674559]
[1746864507456,0.24421293,664.68,662.81,0.62674559]
[1746864507760,0.24421293,664.67,662.81,0.62674559]
[1746864508259,0.24421293,664.66,662.81,0.62674559]
[1746864508459,0.24421293,664.65,662.81,0.62674559]
[1746864508756,0.24421293,664.64,662.81,0.62674559]
[1746864509059,0.24421293,664.63,662.81,0.62674559]
[1746864509459,0.24421293,664.62,662.81,0.62674559]
[1746864509755,0.24421293,664.61,662.81,0.62674559]
[1746864510255,0.24421293,664.6,662.81,0.62674559]
[1746864510561,0.26223085,664.66,662.81,0.62674559]
[1746864510860,0.24424256,664.65,662.81,0.62674559]
[1746864511256,0.24424256,664.64,662.81,0.62674559]
[1746864511657,0.24424256,664.63,662.81,0.62674559]
[1746864511955,0.24424256,664.62,662.81,0.62674559]
[1746864512360,0.24424256,664.61,662.81,0.62674559]
[1746864512761,0.24424256,664.6,662.81,0.62674559]
[1746864513061,0.24424256,664.59,662.81,0.62674559]
[1746864513364,0.24424256,664.58,662.81,0.62674559]
[1746864513661,0.24424256,664.63,662.81,0.62674559]
[1746864513963,0.24424256,664.62,662.81,0.62674559]
[1746864514262,0.26223974,664.64,662.81,0.62674559]
[1746864514263,0.54517092,664.61,662.81,0.62674559]
[1746864514661,0.24424256,664.6,662.81,0.62674559]
[1746864514962,0.24424256,664.59,662.81,0.62674559]
[1746864515862,0.24424256,664.58,662.81,0.62674559]
[1746864516163,0.24424256,664.57,662.81,0.62674559]
[1746864516464,1.94982913,664.44,662.81,0.62674559]
[1746864516860,0.24424256,664.43,662.81,0.62674559]
[1746864517062,0.24424256,664.42,662.81,0.62674559]
[1746864517561,0.24424256,664.41,662.81,0.62674559]
[1746864517764,0.24424256,664.4,662.81,0.62674559]
[1746864518063,0.24424256,664.43,662.81,0.62674559]
[1746864518864,0.24424256,664.44,662.81,0.62674559]
[1746864520665,0.26225654,664.43,662.81,0.62674559]
[1746864521363,0.24424256,664.42,662.81,0.62674559]
[1746864523165,0.24424256,664.44,662.81,0.62674559]
[1746864523560,0.26225654,664.43,662.81,0.62674559]
[1746864523862,0.24424256,664.42,662.81,0.62674559]
[1746864525565,0.24424256,664.42,662.81,0.325]
[1746864525759,0.26225654,664.43,662.81,0.325]
[1746864525962,1.94982913,664.45,662.81,0.325]
[1746864526263,0.24428259,664.42,662.81,0.325]
[1746864526461,0.50653913,664.44,662.81,0.325]
[1746864527067,0.24428259,664.43,662.81,0.325]
[1746864529269,0.24428259,664.42,662.81,0.325]
[1746864529468,0.5065411,664.42,662.81,0.325]
[1746864529663,0.24428259,664.41,662.81,0.325]
[1746864530170,0.24428259,664.4,662.81,0.325]
[1746864530470,0.26225851,664.42,662.81,0.325]
[1746864530471,0.24428259,664.39,662.81,0.325]
[1746864530770,0.24428259,664.38,662.81,0.325]
[1746864531070,0.24428259,664.37,662.81,0.325]
[1746864531369,0.24428259,664.36,662.81,0.325]
[1746864531670,0.24428259,664.35,662.81,0.325]
[1746864532068,0.24428259,664.34,662.81,0.325]
[1746864532464,0.24428259,664.33,662.81,0.325]
[1746864532871,0.24428259,664.32,662.81,0.325]
[1746864533171,0.24428259,664.31,662.81,0.325]
[1746864533470,0.24428259,664.3,662.81,0.325]
[1746864534173,0.24428259,664.29,662.81,0.325]
[1746864534470,0.24428259,664.28,662.81,0.325]
[1746864534871,0.24428259,664.27,662.81,0.325]
[1746864535169,1.94982913,664.11,662.81,0.325]
[1746864535567,0.24428259,664.1,662.81,0.325]
[1746864536373,0.24428259,664.09,662.81,0.325]
[1746864536574,0.24428259,664.09,662.81,0.857]
[1746864536773,0.24428259,664.08,662.81,0.857]
[1746864536976,0.24428259,664.07,662.81,0.857]
[1746864537275,0.24428259,664.06,662.81,0.857]
[1746864537768,0.2624959,664.26,662.81,0.857]
[1746864537769,0.24428259,664.05,662.81,0.857]
[1746864537969,0.24428259,664.04,662.81,0.857]
[1746864538273,0.2624959,664.26,662.81,0.857]
[1746864538274,0.24428259,664.03,662.81,0.857]
[1746864538569,0.24428259,664.02,662.81,0.857]
[1746864538874,0.24428259,664.01,662.81,0.857]
[1746864539376,0.24428259,664.0,662.81,0.857]
[1746864539775,0.24428259,663.99,662.81,0.857]
[1746864540073,0.24428259,663.98,662.81,0.857]
[1746864540269,0.24428259,663.98,662.81,0.532]
[1746864540474,0.24428259,663.97,662.81,0.532]
[1746864540774,0.24428259,663.96,662.81,0.532]
[1746864541173,0.24428259,663.95,662.81,0.532]
[1746864541373,0.24428259,663.94,662.81,0.532]
[1746864541674,0.24428259,663.93,662.81,0.532]
[1746864541976,0.24428259,663.92,662.81,0.532]
[1746864542374,0.24428259,663.91,662.81,0.532]
[1746864542676,0.24428259,663.9,662.81,0.532]
[1746864543076,0.24428259,663.89,662.81,0.532]
[1746864543578,0.24428259,663.88,662.81,0.532]
[1746864544178,0.24428259,664.25,662.81,0.532]
[1746864544777,0.24428259,664.24,662.81,0.532]
[1746864545271,0.24428259,664.23,662.81,0.532]
[1746864545576,0.24428259,664.22,662.81,0.532]
[1746864545876,0.24428259,664.21,662.81,0.532]
[1746864546576,0.24428259,664.2,662.81,0.532]
[1746864547077,0.24428259,664.19,662.81,0.532]
[1746864547279,0.50661524,664.19,662.81,0.532]
[1746864547474,0.24428259,664.18,662.81,0.532]
[1746864547976,0.24428259,664.17,662.81,0.532]
[1746864548278,0.24428259,664.16,662.81,0.532]
[1746864548675,0.24428259,664.15,662.81,0.532]
[1746864549276,0.24428259,664.14,662.81,0.532]
[1746864549676,0.24428259,664.13,662.81,0.532]
[1746864549972,0.24428259,664.12,662.81,0.532]
[1746864550278,0.24428259,664.11,662.81,0.532]
[1746864550572,0.24428259,664.1,662.81,0.532]
[1746864550978,0.24428259,664.09,662.81,0.532]
[1746864551178,0.24428259,664.08,662.81,0.532]
[1746864551478,0.24428259,664.18,662.81,0.532]
[1746864552579,0.24428259,664.17,662.81,0.532]
[1746864552878,0.24428259,664.16,662.81,0.532]
[1746864553078,0.24428259,664.15,662.81,0.532]
[1746864553478,0.24428259,664.14,662.81,0.532]
[1746864553778,0.24428259,664.13,662.81,0.532]
[1746864554273,0.24428259,664.12,662.81,0.532]
[1746864554678,0.24428259,664.11,662.81,0.532]
[1746864555078,0.24428259,664.1,662.81,0.532]
[1746864555273,0.24428259,664.09,662.81,0.532]
[1746864555574,0.24428259,664.08,662.81,0.532]
[1746864556273,0.24428259,664.07,662.81,0.532]
[1746864556677,0.24428259,664.06,662.81,0.532]
[1746864556978,0.24428259,664.05,662.81,0.532]
[1746864557273,0.24428259,664.04,662.81,0.532]
[1746864557579,0.24428259,664.03,662.81,0.532]
[1746864558076,0.24428259,664.02,662.81,0.532]
[1746864558474,0.24428259,664.01,662.81,0.532]
[1746864558679,0.24428259,664.0,662.81,0.532]
[1746864559087,0.24428259,663.99,662.81,0.532]
[1746864559581,0.26242563,664.06,662.81,0.989]
[1746864559582,0.24428259,663.98,662.81,0.989]
[1746864560083,0.24428259,663.97,662.81,0.989]
[1746864560383,0.24428259,663.96,662.81,0.989]
[1746864560578,0.24428259,663.95,662.81,0.989]
[1746864560775,0.54551462,663.94,662.81,0.989]
[1746864561082,0.24428259,663.93,662.81,0.989]
[1746864561381,0.24428259,663.92,662.81,0.989]
[1746864561577,0.24428259,663.91,662.81,0.989]
[1746864561982,0.24428259,663.9,662.81,0.989]
[1746864562581,0.24428259,663.89,662.81,0.989]
[1746864562881,0.24428259,663.93,662.81,0.989]
[1746864563083,0.24428259,663.92,662.81,0.989]
[1746864563384,0.24428259,663.91,662.81,0.989]
[1746864563684,0.30123203,663.94,662.81,0.989]
[1746864564084,0.24369903,663.93,662.81,0.989]
[1746864564479,0.24369903,663.92,662.81,0.989]
[1746864564784,0.24369903,663.91,662.81,0.989]
[1746864565284,0.24369903,663.9,662.81,0.989]
[1746864565485,0.50618206,663.9,662.81,0.989]
[1746864565681,0.24369903,663.89,662.81,0.989]
[1746864566185,0.24369903,663.88,662.81,0.989]
[1746864566480,0.24369903,663.87,662.81,0.989]
[1746864566784,0.24369903,663.86,662.81,0.989]
[1746864567385,0.24369903,663.85,662.81,0.989]
[1746864567792,0.24369903,663.84,662.81,0.989]
[1746864568185,0.24369903,663.83,662.81,0.989]
[1746864568384,0.50617216,663.83,662.81,0.989]
[1746864568583,0.24369903,663.82,662.81,0.989]
[1746864569085,1.94982913,663.72,662.81,0.989]
[1746864569382,0.24369903,663.71,662.81,0.989]
[1746864569786,0.24369903,663.7,662.81,0.989]
[1746864570187,0.24369903,663.69,662.81,0.989]
[1746864570388,0.24369903,663.68,662.81,0.989]
[1746864570588,0.24369903,663.71,662.81,0.989]
[1746864571188,0.24369903,663.74,662.81,0.989]
[1746864572888,0.24369903,663.82,662.81,0.989]
[1746864573586,0.30129103,663.81,662.81,0.989]
[1746864574089,0.24369903,663.8,662.81,0.989]
[1746864574385,0.50618008,663.8,662.81,0.989]
[1746864574589,0.24369903,663.79,662.81,0.989]
[1746864577490,0.26248996,663.78,662.81,0.989]
[1746864577796,0.24369903,663.77,662.81,0.989]
[1746864579393,0.24369903,663.76,662.81,0.989]
[1746864579692,0.24369903,663.75,662.81,0.989]
[1746864580092,0.24369903,663.74,662.81,0.989]
[1746864580398,0.24369903,663.73,662.81,0.989]
[1746864580892,0.24369903,663.72,662.81,0.989]
[1746864581697,0.24369903,663.71,662.81,0.989]
[1746864581893,0.30134096,663.7,662.81,0.989]
[1746864582198,0.54503999,663.7,662.81,0.989]
[1746864582396,0.24369903,663.69,662.81,0.457]
[1746864582698,0.24369903,663.68,662.81,0.457]
[1746864583000,0.24369903,663.67,662.81,0.457]
[1746864583300,1.94982913,663.66,662.81,0.457]
[1746864583798,2.19352816,663.66,662.81,0.457]
[1746864583999,0.24369903,663.65,662.81,0.457]
[1746864584295,0.24369903,663.64,662.81,0.457]
[1746864584601,0.24369903,663.63,662.81,0.457]
[1746864584902,0.24369903,663.62,662.81,0.457]
[1746864585202,0.24369903,663.61,662.81,0.457]
[1746864585600,0.24369903,663.6,662.81,0.457]
[1746864585998,0.24369903,663.59,662.81,0.457]
[1746864586202,0.24369903,663.58,662.74,0.526]
[1746864586402,1.94982913,663.47,662.74,0.526]
[1746864587108,0.24369903,663.46,662.74,0.26336444]
[1746864587408,0.24369903,663.45,662.74,0.26336444]
[1746864587707,0.24369903,663.44,662.74,0.26336444]
[1746864588001,0.24369903,663.43,662.74,0.26336444]
[1746864588305,0.24369903,663.42,662.74,0.26336444]
[1746864588604,1.94982913,663.47,662.74,0.26336444]
[1746864588605,0.24369903,663.41,662.74,0.26336444]
[1746864588811,0.30147723,663.4,662.74,0.26336444]
[1746864589106,0.24369903,663.39,662.74,0.26336444]
[1746864589504,0.24369903,663.38,662.74,0.26336444]
[1746864589703,0.24369903,663.37,662.74,0.26336444]
[1746864590006,0.24369903,663.36,662.74,0.26336444]
[1746864590308,0.24369903,663.35,662.74,0.26336444]
[1746864590707,0.24369903,663.35,662.74,0.05402932]
[1746864591308,0.24369903,663.34,662.74,0.05402932]
[1746864591609,1.94982913,663.26,662.74,0.05402932]
[1746864592002,0.24369903,663.25,662.26,0.507]
[1746864593907,0.24369903,663.24,662.26,0.507]
[1746864594307,0.24369903,663.25,662.26,0.507]
[1746864594608,0.24369903,663.37,662.26,0.507]
[1746864595009,0.24369903,663.36,662.26,0.507]
[1746864595311,0.26271785,663.38,662.26,0.507]
[1746864595312,0.24369903,663.35,662.26,0.507]
[1746864595610,0.24369903,663.34,662.26,0.507]